Cogmind - Beta 15 @@@ ROGUE MODE // 2025.08.26 @ 08:55:56 Player: Lich Result: Destroyed by S-10 Pest with Light Assault Rifle Performance ------------- Evolutions (0) 0 Regions Visited (1) 200 Robots Destroyed (18) 90 Value Destroyed (441) 441 Prototype IDs (0) 0 Alien Tech Used (0) 0 Bonus (0) 0 TOTAL SCORE: 731 Bonus ------- None Cogmind --------- Core Integrity 0/250 Matter 217/400 Energy 250/250 System Corruption 0% Temperature Cool (0) Movement Core (500) Ox9 Location -10/Materials Parts ------- > --- POWER (1) -------- Ion Engine > --- PROPULSION (2) --- (None) > --- UTILITY (2) ------ Large Storage Unit Medium Matter Pod > --- WEAPON (2) ------- Assault Rifle > --- INVENTORY (15) --- Light Ion Engine Small Storage Unit Small Matter Pod (0) Medium Matter Pod (0) Small Laser Particle Gun Light Cannon Peak State ------------ > --- POWER ------------ Ion Engine > --- PROPULSION ------- Aluminum Leg Aluminum Leg > --- UTILITY ---------- Heat Sink Large Storage Unit > --- WEAPON ----------- Small Laser Particle Gun > --- INVENTORY -------- Light Ion Engine Flight Unit Small Storage Unit Medium Matter Pod Medium Matter Pod Structural Scanner Terrain Scanner Assault Rifle Light Cannon Grenade Launcher [Rating: 9] Favorites ----------- Power Ion Engine Engine Ion Engine Propulsion Aluminum Leg Leg Aluminum Leg Wheel Wheel Flight Unit Flight Unit Utility Large Storage Unit Device Heat Sink Storage Large Storage Unit Processor Targeting Computer Weapon Grenade Launcher Energy Gun Small Laser Ballistic Gun Assault Rifle Ballistic Cannon Light Cannon Launcher Grenade Launcher Build | -11 -10 ------- Run | Yrd Mat Slots Evolved . | . . Power . | . . Propulsion . | . . Utility . | . . Weapon . | . . Parts Attached 19 | 8 11 Power 3 | 1 2 Engine 3 | 1 2 Core . | . . Reactor . | . . Propulsion 6 | 4 2 Treads . | . . Leg 3 | 3 . Wheel 1 | 1 . Hover . | . . Flight 2 | . 2 Utility 5 | 1 4 Device 1 | 1 . Storage 3 | . 3 Processor 1 | . 1 Hackware . | . . Protection . | . . Artifact . | . . Weapon 5 | 2 3 Energy Gun 2 | 1 1 Energy Cannon . | . . Ballistic Gun 1 | 1 . Ballistic Cannon 1 | . 1 Launcher 1 | . 1 Special Weapon . | . . Impact Weapon . | . . Slashing Weapon . | . . Piercing Weapon . | . . Special Melee Weapon . | . . Unidentified Prototypes . | . . Parts Lost 7 | . 7 Power 1 | . 1 Propulsion 4 | . 4 Utility 1 | . 1 Weapon 1 | . 1 Highest Loss Streak 3 | . 3 To Critical Strikes . | . . Average Backups 6 | . 7 Power . | . . Propulsion . | . . Utility 3 | . 3 Weapon 2 | . 2 Tool/Special . | . . Unused Backups 5 | 1 4 Power . | . . Propulsion 1 | 1 . Utility 4 | . 4 Weapon . | . . Tool/Special . | . . Average Slot Usage (%) 88 | . 88 Engine 13 | . 13 Leg 9 | . 9 Flight 10 | . 10 Device 4 | . 4 Storage 21 | . 21 Energy Gun 6 | . 6 Ballistic Gun 2 | . 2 Ballistic Cannon 8 | . 8 Launcher 9 | . 9 Peak Build Rating 9 | 6 9 Average Rating 6 | 4 6 On Entrance 3 | . 6 Naked Turns . | . . Heaviest Build 33 | 7 33 Greatest Support 20 | 20 20 Greatest Overweight (x) 10 | . 10 Average Overweight (x) 2 | . 3 Largest Inventory Capacity 15 | 5 15 Average Capacity 12 | 5 14 Most Carried 11 | 3 11 Average Carried 6 | . 7 Final Capacity 15 | 5 15 Final Carried 7 | . 7 Class Distribution -------------------- 88% | Mutant 11% | Scavenger-Mutant Dominant Class ---------------- Mutant | -10/Materials Resources | -11 -10 ----------- Run | Yrd Mat Matter Collected 590 | 296 294 Remotely . | . . Salvage Created 548 | 49 499 Parts 35 | 5 30 Haulers Intercepted . | . . Recyclers Shooed 1 | . 1 Parts Field Recycled . | . . Retrieved Matter . | . . Parts Self-Destructed . | . . Prevented . | . . Kills | -11 -10 ------- Run | Yrd Mat Combat Hostiles Destroyed 12 | 1 11 Guns 4 | 1 3 Cannons 3 | . 3 AOE 5 | . 5 Classes Destroyed 6 | 2 4 Worker 2 | 1 1 Builder 1 | . 1 Recycler 2 | . 2 Watcher 1 | . 1 Swarmer 2 | . 2 Grunt 10 | 1 9 Best Kill Streak 4 | 1 4 Combat Bots Only 4 | 1 4 Max Kills in Single Turn 1 | 1 1 Gunslinging . | . . Exploded 1 | . 1 Melee . | . . Uniques/NPCs Destroyed . | . . Combat | -11 -10 -------- Run | Yrd Mat Hostile Shots Fired 112 | 1 111 Missed 36 | . 36 Hits 76 | 1 75 Projectile 76 | 1 75 Damage Taken 922 | 12 910 Core 250 | . 250 Absorbed by Shields . | . . Core Remaining (%) 100 | 100 . Volleys Fired 41 | 3 38 Largest 2 | 2 2 Hottest 105 | 60 105 Shots Fired 69 | 4 65 Gun 45 | 4 41 Cannon 12 | . 12 Launcher 12 | . 12 Special . | . . Kinetic 32 | 2 30 Thermal 25 | 2 23 Explosive 12 | . 12 Electromagnetic . | . . Robot Hit Streak 6 | 2 6 Robot Miss Streak 3 | . 3 Penetration Max . | . . Secondary Targets 1 | . 1 Max Gunslinging Chain 1 | . 1 Shots Hit Robots 39 | 2 37 Core Hits 26 | 2 24 Critical Kills . | . . Critical Parts Destroyed . | . . Critical Strikes 1 | . 1 Burn 1 | . 1 Melee Attacks . | . . Impact . | . . Slashing . | . . Piercing . | . . Sneak Attacks . | . . Combat Hostiles . | . . Follow-up Attacks . | . . Damage Inflicted 960 | 26 934 Guns 344 | 26 318 Cannons 104 | . 104 Explosions 512 | . 512 Melee . | . . Ramming . | . . Kinetic 240 | 15 225 Thermal 208 | 11 197 Explosive 512 | . 512 Electromagnetic . | . . Impact . | . . Slashing . | . . Piercing . | . . Highest Corruption . | . . Average Corruption . | . . Corruption Purged . | . . Corruption Blocked . | . . Overload Shots . | . . Overflow Damage 16 | . 16 Projectiles 2 | . 2 Explosions 14 | . 14 Melee . | . . Knockbacks 1 | . 1 Impact . | . . Kinetic 1 | . 1 Secondary . | . . Self-Inflicted Damage 108 | . 108 Shots 4 | . 4 Rammed . | . . Targets Rammed . | . . Kicked . | . . Crushed . | . . Highest Temperature 75 | . 75 Average Temperature 21 | . 21 Received Heat Transfer 303 | 6 297 Siege Activations . | . . Martial Activations . | . . Shielding Activations . | . . Robots Disrupted . | . . Combat Hostiles . | . . Robots Corrupted . | . . Combat Hostiles . | . . Parts Fried . | . . Impact Corruptions . | . . Robots Melted . | . . Combat Hostiles . | . . Parts Melted . | . . Heat Transferred 560 | 25 535 Parts Sabotaged . | . . Parts Stolen . | . . Parts Stripped . | . . Power Chain Reactions . | . . Alert | -11 -10 ------- Run | Yrd Mat Maximum Alert Level . | . . Low Security (%) 100 | 100 100 Level 1 . | . . Level 2 . | . . Level 3 . | . . Level 4 . | . . Level 5 . | . . High Security . | . . Max Security . | . . Peak Influence 104 | 20 104 Initial . | . . Average 29 | 3 34 Influence Increases 431 | 25 406 Destroy 0b10 Robot/C 240 | 20 220 Destroy 0b10 Robot/NC 30 | 5 25 Destroy Leader 52 | . 52 Successful Hack 2 | . 2 Disable Machine 30 | . 30 Destroy Structure 77 | . 77 Influence Decreases 351 | 25 326 Time Decay 281 | 25 256 Lost Part 70 | . 70 Squads Dispatched 2 | . 2 Investigation 1 | . 1 Extermination . | . . Reinforcement 1 | . 1 Assault . | . . Garrison . | . . Intercept . | . . Searches Triggered . | . . Construction Impeded . | . . Haulers Reinforced . | . . Active Scanning Responses . | . . Cargo Convoy Interrupts . | . . Stealth | -11 -10 --------- Run | Yrd Mat Distress Signals . | . . Communications Jammed . | . . Distress Signals . | . . Times Spotted 13 | 1 12 Peak Tracking Total 3 | 1 3 Tactical Retreats . | . . Traps | -11 -10 ------- Run | Yrd Mat Traps Triggered . | . . Indirectly . | . . Trap Hack Attempts . | . . Triggered . | . . Disarmed . | . . Reprogrammed . | . . Reused . | . . Traps Extracted . | . . Installed . | . . Triggered . | . . Machines | -11 -10 ---------- Run | Yrd Mat Machines Disabled 2 | . 2 Max in Single Turn 1 | . 1 Machines Repaired . | . . Machines Dismantled . | . . Machines Sabotaged . | . . Overloaded Fab Kills . | . . Hacking | -11 -10 --------- Run | Yrd Mat Machines Accessed 1 | . 1 Terminals 1 | . 1 Fabricators . | . . Repair Stations . | . . Recycling Units . | . . Scanalyzers . | . . Garrison Access . | . . Total Hacks 6 | . 6 Successful 4 | . 4 Failed 2 | . 2 Catastrophic 1 | . 1 Database Lockouts . | . . Manual 1 | . 1 Terminals 6 | . 6 Fabricators . | . . Repair Stations . | . . Recycling Units . | . . Scanalyzers . | . . Garrison Access . | . . Terminal Hacks 4 | . 4 Record 3 | . 3 Terminal Index 1 | . 1 Fabricator Hacks . | . . Repair Station Hacks . | . . Recycling Unit Hacks . | . . Scanalyzer . | . . Garrison Access Hacks . | . . Unauthorized Hacks . | . . Terminals . | . . Fabricators . | . . Repair Stations . | . . Recycling Units . | . . Scanalyzers . | . . Garrison Access . | . . Data Cores Recovered . | . . Used . | . . Hacking Detections 1 | . 1 Full Trace Events 1 | . 1 Feedback Events . | . . Feedback Blocked . | . . Robot Schematics Acquired . | . . Robots Built . | . . Authchips . | . . Time . | . . Total Robot Build Rating . | . . Part Schematics Acquired . | . . Parts Built . | . . Authchips . | . . Time . | . . Total Part Build Rating . | . . Parts Repaired . | . . Time . | . . Parts Recycled . | . . Recycled Matter . | . . Retrieved Matter . | . . Retrieved Components . | . . Parts Scanalyzed . | . . Part Schematics Acquired . | . . Parts Damaged . | . . Bothacking | -11 -10 ------------ Run | Yrd Mat Used RIF Installer . | . . Robots Hacked . | . . Non-combat . | . . Combat . | . . Robot Hacks Applied . | . . Relay Couplers Released . | . . Fabnet Peak Effective % . | . . Robots Rewired . | . . Allies Hacked . | . . Hacks Repelled . | . . Allies | -11 -10 -------- Run | Yrd Mat Total Allies . | . . Largest Group . | . . Highest-Rated Group . | . . Highest-Rated Ally . | . . Total Orders . | . . Ally Attacks . | . . Total Damage . | . . Kills . | . . Allies Corrupted . | . . Allies Melted . | . . Intel | -11 -10 ------- Run | Yrd Mat Active Infowar (turns) . | . . Robot Analysis Total . | . . Derelict Logs Recovered . | . . Drone Launches . | . . Drone Recoveries . | . . Exploration | -11 -10 ------------- Run | Yrd Mat Turns Passed 996 | 163 833 Spaces Moved 338 | 121 217 Core 50 | 28 22 Treads . | . . Legs 204 | 93 111 Wheels . | . . Hover . | . . Flight 84 | . 84 Fastest Speed 50 | 50 120 Average Speed 241 | 103 318 Slowest Speed 680 | 120 680 Overloaded Moves . | . . Propulsion Burnouts . | . . Robots Hopped . | . . Potential Cave-ins . | . . Cave-ins Triggered . | . . Exploration Rate (%) 15 | 6 25 Regions Visited 1 Branch Regions . Pre-discovered Areas . | . . Known Exits Taken . | . . Unknown Exits Taken 1 | 1 . Scrap Searched . | . . Spaces Dug . | . . Terrain Destroyed 74 | . 74 Melee . | . . Projectile . | . . AOE 74 | . 74 Terrain Rammed . | . . Walls Destroyed . | . . Machines Disabled . | . . Actions | -11 -10 --------- Run | Yrd Mat Total 445 | 154 291 Wait 10 | 10 . Move 337 | 120 217 Hop . | . . Pick Up 24 | 9 15 Fast Attach . | . . Attach 11 | 6 5 Detach . | . . Swap 17 | 3 14 Drop 5 | 3 2 Fire 41 | 3 38 Melee . | . . Ram . | . . Kick . | . . Crush . | . . Escape Stasis . | . . Rewire . | . . Trap . | . . Miscellaneous . | . . Route ------- -11/Scrapyard -10/Materials (discovered 1 exit: [*Mat]) History --------- Turn | Location | Event 2 | -11/Scrapyard | Met Revision 17 73 | -11/Scrapyard | Discovered new exit (range 8) 164 | -11/Scrapyard | Entered Materials 252 | -10/Materials | Discovered new exit (range 14) 304 | -10/Materials | Build established: Mutant 448 | -10/Materials | Core integrity fell below 50% 474 | -10/Materials | Lost 3 parts (2n1u) 982 | -10/Materials | Core integrity fell below 20% 993 | -10/Materials | Lost 3 parts (2n1w) 997 | -10/Materials | Destroyed by S-10 Pest with Light Assault Rifle Last Messages --------------- R-06 Scavenger collects Heat Sink. R-06 Scavenger collects Aluminum Leg. R-06 Scavenger collects Sml. Laser. U-05 Engineer builds a Wall. S-10 Pest destroyed. Flight Unit destroyed. U-05 Engineer lays Concrete. U-05 Engineer builds a Wall. Grenade Launcher destroyed. U-05 Engineer lays Concrete. S-10 Pest destroyed. U-05 Engineer lays Concrete. U-05 Engineer builds a Wall. R-06 Scavenger collects Lgt. Ion Engine. U-05 Engineer lays Concrete. R-06 Scavenger collects Flight Unit. U-05 Engineer lays Concrete. R-06 Scavenger destroyed. U-05 Engineer lays Concrete. [Achievement: First Step to Greatness] Map ----- +----------------------------------------------------+ | ???????????????????????????????????? | | ???????????????????????????????????? | | ???????????????????????????????????? | | ???????????????????????????????????? | | ???????????????????????????????????? | | ???????????????????????????????????? | | ???????????????????????????????????? | | ???????????????????????????????????? | | ???????????????????????????????????? | | ????????????????????????????? ?????? | | ???????????????????????????? #?????? | | ??????????????????????????? #?????? | | ?????????????????????????? #?????? | | ?????????????????????????# ###???? | | ?????#################### #???? | | ????? """" # ! #???? | | ????# """" # #???? | | ????# """" + #???? | | ????# # #???? | | ????# # # #???? | | ????# # #??????? | | ????###### # #??????? | | ????######## #??????? | | ????# ##+###### #??????? | | ????# # #? #??????? | | ????# @= # """#?? #??????? | | ????# =%! #! """#??## #??????? | | ????# %/s%r# """#???# #???#?## | | ????# #% # +???# #??? | | ????####+### # #???# #??? " | | ??# ####/###??## ##?? "T | | ??# """ #### ####### ##?? | | ??# """ #### ####### ##?? | | ??# """ #?## # ##+##### | | ??# #### # # =! # | | ??# """ # # / # T # | | ??# """ # # # # | | ??# """ + + # =# | | ??# # # "" # # | | ??########## # Y" # + | | ???????????#^^^^^^ + "" # # | | ???????????# % ###### # # | | ???????????+ #????###### # | | ???????????# < #?????????# #### | | ???????????# #?????????# #??? | | ???????????#####?????????# #??? | | ?????????????????????????# +??? | | ?????????????????????????########??? | | ???????????????????????????????????? | | ???????????????????????????????????? | +----------------------------------------------------+ Best States ------------- Heat Dissipation 35 Energy Generation 10 Energy Capacity 250 Matter Stores 300 Matter Capacity 400 Sight Range 16 Terrain Scan Density 10 Evasion (%) 55 Item Schematics ----------------- None Robot Schematics ------------------ None Fabricated ------------ Nothing Repaired ---------- Nothing Alien Tech Used ----------------- None Achievements -------------- First Step to Greatness One Hack Too Far Uninvited Guest Challenges ------------ None Game ------ Seed TransdimensionalThermalMace Manual? 0 Play Time 00:23:08 Cumulative 0.3 hours Start 2025.08.26 @ 08:33:22 End 2025.08.26 @ 08:55:56 Sessions 1 Manual Loads 0 Difficulty Rogue Special Mode None Game No. 1 Rogue 1 Adventurer 0 Explorer 0 Win Type - Total 0 Types 0/0/0/0/0/0/0/0/0/0 Lore% 0 Gallery% 1 Achievement% 1 Wizard Run 0 Options --------- Layout 1 ASCII 0 Keyboard 0 Movement Mouse Keybinds 0 Fullscreen 2 Font 24/Terminus Map View 50x35 Zoom Use 8% Tactical HUD 0 Map Filters NONE Filters NONE Steam 1 RUN: 10fa7bb9-bb8f-4321-941e-7fda6e22974e